[Event "Titled Tuesday Blitz March 14 Late 2023"]
[White "Dzierzak, Radoslaw"]
[Black "Costachi, Mihnea"]
[WhiteFideId "1161407"]
[BlackFideId "1217518"]
[WhiteElo "2166"]
[BlackElo "2456"]
[Result "0-1"]
[Round "06"]
[TimeControl "180+2"]
[Date "2023.03.14"]
[WhiteClock "0:00:03"]
[BlackClock "0:00:14"]

1. e4 {[%clk 0:02:59]}  e5 {[%clk 0:02:59]} 2. Nf3 {[%clk 0:02:59]}  Nc6 {[%clk 0:03:00]} 3. Bc4 {[%clk 0:02:59]}  Bc5 {[%clk 0:02:59]} 4. O-O {[%clk 0:02:59]}  d6 {[%clk 0:02:59]} 5. c3 {[%clk 0:02:58]}  Nf6 {[%clk 0:03:00]} 6. d3 {[%clk 0:02:58]}  h6 {[%clk 0:02:59]} 7. Bb3 {[%clk 0:02:57]}  a6 {[%clk 0:02:59]} 8. Nbd2 {[%clk 0:02:56]}  Ba7 {[%clk 0:02:58]} 9. Nc4 {[%clk 0:02:54]}  O-O {[%clk 0:02:58]} 10. Be3 {[%clk 0:02:54]}  Bg4 {[%clk 0:02:47]} 11. Bxa7 {[%clk 0:02:52]}  Rxa7 {[%clk 0:02:47]} 12. Ne3 {[%clk 0:02:51]}  Bh5 {[%clk 0:02:44]} 13. Nf5 {[%clk 0:02:45]}  Ne7 {[%clk 0:02:39]} 14. Ng3 {[%clk 0:02:44]}  Ng6 {[%clk 0:02:26]} 15. Nxh5 {[%clk 0:02:42]}  Nxh5 {[%clk 0:02:27]} 16. Nxe5 {[%clk 0:02:40]}  Nxe5 {[%clk 0:02:26]} 17. Qxh5 {[%clk 0:02:39]}  Nxd3 {[%clk 0:02:27]} 18. Rad1 {[%clk 0:02:26]}  Nc5 {[%clk 0:02:25]} 19. e5 {[%clk 0:02:14]}  Nxb3 {[%clk 0:02:25]} 20. axb3 {[%clk 0:02:14]}  Ra8 {[%clk 0:02:22]} 21. exd6 {[%clk 0:02:14]}  cxd6 {[%clk 0:02:23]} 22. Rd4 {[%clk 0:01:39]}  Qe7 {[%clk 0:02:10]} 23. Rfd1 {[%clk 0:01:30]}  Rfe8 {[%clk 0:02:10]} 24. g3 {[%clk 0:01:29]}  Rad8 {[%clk 0:02:01]} 25. R1d2 {[%clk 0:01:19]}  Qf6 {[%clk 0:01:36]} 26. Qd1 {[%clk 0:01:17]}  Re6 {[%clk 0:01:35]} 27. Re2 {[%clk 0:01:14]}  Rde8 {[%clk 0:01:33]} 28. Rxe6 {[%clk 0:01:14]}  Rxe6 {[%clk 0:01:34]} 29. Kg2 {[%clk 0:01:11]}  g6 {[%clk 0:01:33]} 30. Qf3 {[%clk 0:01:11]}  Qe7 {[%clk 0:01:32]} 31. Rb4 {[%clk 0:01:06]}  b5 {[%clk 0:01:31]} 32. c4 {[%clk 0:01:00]}  d5 {[%clk 0:01:11]} 33. cxd5 {[%clk 0:01:00]}  Rf6 {[%clk 0:01:05]} 34. Rf4 {[%clk 0:00:59]}  Rd6 {[%clk 0:01:03]} 35. Re4 {[%clk 0:00:45]}  Qd7 {[%clk 0:00:58]} 36. Rd4 {[%clk 0:00:43]}  Qe7 {[%clk 0:00:59]} 37. Qe3 {[%clk 0:00:42]}  Qf6 {[%clk 0:00:57]} 38. Qf4 {[%clk 0:00:36]}  Qe7 {[%clk 0:00:49]} 39. Qxh6 {[%clk 0:00:20]}  Qe5 {[%clk 0:00:38]} 40. Qd2 {[%clk 0:00:15]}  Qf5 {[%clk 0:00:38]} 41. Qd3 {[%clk 0:00:14]}  Qe5 {[%clk 0:00:37]} 42. f4 {[%clk 0:00:10]}  Qe1 {[%clk 0:00:36]} 43. Qd2 {[%clk 0:00:10]}  Qb1 {[%clk 0:00:35]} 44. Kf3 {[%clk 0:00:05]}  Qh1+ {[%clk 0:00:33]} 45. Qg2 {[%clk 0:00:04]}  Qe1 {[%clk 0:00:28]} 46. Qe2 {[%clk 0:00:04]}  Qh1+ {[%clk 0:00:28]} 47. Qg2 {[%clk 0:00:04]}  Qb1 {[%clk 0:00:28]} 48. Qe2 {[%clk 0:00:04]}  Qf5 {[%clk 0:00:28]} 49. Qe8+ {[%clk 0:00:03]}  Kh7 {[%clk 0:00:28]} 50. Qe5 {[%clk 0:00:04]}  Qd7 {[%clk 0:00:25]} 51. g4 {[%clk 0:00:04]}  Qd8 {[%clk 0:00:17]} 52. f5 {[%clk 0:00:04]}  Rf6 {[%clk 0:00:17]} 53. Kg3 {[%clk 0:00:03]}  gxf5 {[%clk 0:00:16]} 54. gxf5 {[%clk 0:00:03]}  Rh6 {[%clk 0:00:14]} 55. Rh4 {[%clk 0:00:03]}  Qxh4+ {[%clk 0:00:14]} 56. Kf3 {[%clk 0:00:03]}  Qh3+ {[%clk 0:00:14]} 57. Ke4 {[%clk 0:00:03]}  Rh4+ {[%clk 0:00:14]} 0-1


[Site "https://www.chess.com"]

[Event "Titled Tuesday Blitz March 14 Late 2023"]
[White "Dinu, Dumitru-Daniel"]
[Black "Martinez Alcantara, Jose Eduardo"]
[WhiteFideId "1208403"]
[BlackFideId "3805662"]
[WhiteElo "2240"]
[BlackElo "2712"]
[Result "0-1"]
[Round "06"]
[TimeControl "180+2"]
[Date "2023.03.14"]
[WhiteClock "0:00:06"]
[BlackClock "0:00:13"]

1. e4 {[%clk 0:03:00]}  c5 {[%clk 0:02:54]} 2. Nf3 {[%clk 0:02:58]}  d6 {[%clk 0:02:47]} 3. Bc4 {[%clk 0:02:58]}  e6 {[%clk 0:02:47]} 4. O-O {[%clk 0:02:58]}  a6 {[%clk 0:02:46]} 5. a4 {[%clk 0:02:58]}  Nf6 {[%clk 0:02:47]} 6. Re1 {[%clk 0:02:55]}  Be7 {[%clk 0:02:47]} 7. Nc3 {[%clk 0:02:54]}  O-O {[%clk 0:02:47]} 8. d4 {[%clk 0:02:52]}  cxd4 {[%clk 0:02:48]} 9. Nxd4 {[%clk 0:02:52]}  Bd7 {[%clk 0:02:49]} 10. Be3 {[%clk 0:02:51]}  Nc6 {[%clk 0:02:49]} 11. Bb3 {[%clk 0:02:46]}  Rc8 {[%clk 0:02:48]} 12. Nxc6 {[%clk 0:02:46]}  Bxc6 {[%clk 0:02:48]} 13. Bd4 {[%clk 0:02:45]}  Qc7 {[%clk 0:02:48]} 14. Qe2 {[%clk 0:02:42]}  Rfe8 {[%clk 0:02:45]} 15. Rad1 {[%clk 0:02:41]}  e5 {[%clk 0:02:34]} 16. Be3 {[%clk 0:02:35]}  Nxe4 {[%clk 0:02:34]} 17. Qc4 {[%clk 0:02:01]}  Nxc3 {[%clk 0:02:24]} 18. Qxf7+ {[%clk 0:02:01]}  Kh8 {[%clk 0:02:23]} 19. bxc3 {[%clk 0:02:02]}  Rf8 {[%clk 0:02:22]} 20. Qh5 {[%clk 0:01:59]}  Be4 {[%clk 0:02:06]} 21. Be6 {[%clk 0:01:38]}  Bxc2 {[%clk 0:01:38]} 22. Rc1 {[%clk 0:01:36]}  Bg6 {[%clk 0:01:37]} 23. Qh3 {[%clk 0:01:32]}  Rcd8 {[%clk 0:01:31]} 24. c4 {[%clk 0:01:20]}  Bf6 {[%clk 0:01:28]} 25. Red1 {[%clk 0:01:17]}  Qe7 {[%clk 0:01:22]} 26. Bd5 {[%clk 0:01:13]}  e4 {[%clk 0:00:51]} 27. c5 {[%clk 0:01:08]}  Be5 {[%clk 0:00:52]} 28. cxd6 {[%clk 0:01:04]}  Bxd6 {[%clk 0:00:51]} 29. Rb1 {[%clk 0:00:43]}  Be5 {[%clk 0:00:35]} 30. Rbc1 {[%clk 0:00:30]}  b5 {[%clk 0:00:25]} 31. axb5 {[%clk 0:00:30]}  axb5 {[%clk 0:00:26]} 32. Bc5 {[%clk 0:00:28]}  Bd6 {[%clk 0:00:26]} 33. Be3 {[%clk 0:00:27]}  b4 {[%clk 0:00:24]} 34. Bb3 {[%clk 0:00:25]}  Be5 {[%clk 0:00:20]} 35. Re1 {[%clk 0:00:20]}  Bc3 {[%clk 0:00:19]} 36. Rf1 {[%clk 0:00:19]}  Qf6 {[%clk 0:00:19]} 37. Qg3 {[%clk 0:00:14]}  h6 {[%clk 0:00:19]} 38. Bc5 {[%clk 0:00:12]}  Rfe8 {[%clk 0:00:17]} 39. Qe3 {[%clk 0:00:12]}  Kh7 {[%clk 0:00:16]} 40. Rfd1 {[%clk 0:00:10]}  Rd3 {[%clk 0:00:16]} 41. Qe2 {[%clk 0:00:08]}  Red8 {[%clk 0:00:15]} 42. Rf1 {[%clk 0:00:07]}  Rd2 {[%clk 0:00:14]} 43. Qe3 {[%clk 0:00:07]}  R8d3 {[%clk 0:00:14]} 44. Rxc3 {[%clk 0:00:06]}  Qxc3 {[%clk 0:00:12]} 45. Qe1 {[%clk 0:00:03]}  Qxb3 {[%clk 0:00:12]} 46. Be3 {[%clk 0:00:03]}  Rd1 {[%clk 0:00:12]} 47. Qe2 {[%clk 0:00:04]}  Rxf1+ {[%clk 0:00:13]} 48. Qxf1 {[%clk 0:00:05]}  Rd1 {[%clk 0:00:12]} 49. Qxd1 {[%clk 0:00:06]}  Qxd1# {[%clk 0:00:13]} 0-1


[Site "https://www.chess.com"]

[Event "Titled Tuesday Blitz March 14 Late 2023"]
[White "Koellner, Ruben Gideon"]
[Black "Mendonca, Leon Luke"]
[WhiteFideId "12993093"]
[BlackFideId "35028561"]
[WhiteElo "2303"]
[BlackElo "2464"]
[Result "1-0"]
[Round "06"]
[TimeControl "180+2"]
[Date "2023.03.14"]
[WhiteClock "0:00:11"]
[BlackClock "0:00:19"]

1. d4 {[%clk 0:03:00]}  Nf6 {[%clk 0:02:55]} 2. Nf3 {[%clk 0:02:59]}  d5 {[%clk 0:02:55]} 3. e3 {[%clk 0:02:59]}  e6 {[%clk 0:02:55]} 4. Nbd2 {[%clk 0:02:59]}  c5 {[%clk 0:02:54]} 5. b3 {[%clk 0:02:58]}  b6 {[%clk 0:02:54]} 6. Bb5+ {[%clk 0:02:50]}  Bd7 {[%clk 0:02:53]} 7. Bd3 {[%clk 0:02:50]}  Be7 {[%clk 0:02:51]} 8. Bb2 {[%clk 0:02:50]}  O-O {[%clk 0:02:51]} 9. O-O {[%clk 0:02:50]}  Nc6 {[%clk 0:02:52]} 10. Ne5 {[%clk 0:02:50]}  Rc8 {[%clk 0:02:43]} 11. a3 {[%clk 0:02:50]}  Nxe5 {[%clk 0:02:37]} 12. dxe5 {[%clk 0:02:51]}  Ne8 {[%clk 0:02:38]} 13. Qh5 {[%clk 0:02:50]}  g6 {[%clk 0:02:38]} 14. Qh3 {[%clk 0:02:48]}  Ng7 {[%clk 0:02:39]} 15. f4 {[%clk 0:02:46]}  b5 {[%clk 0:02:36]} 16. Be2 {[%clk 0:02:37]}  Bc6 {[%clk 0:02:33]} 17. Nf3 {[%clk 0:02:36]}  a5 {[%clk 0:02:26]} 18. Rad1 {[%clk 0:02:33]}  Qb6 {[%clk 0:02:22]} 19. g4 {[%clk 0:02:30]}  d4 {[%clk 0:02:14]} 20. exd4 {[%clk 0:02:28]}  Bxf3 {[%clk 0:02:13]} 21. Qxf3 {[%clk 0:02:14]}  cxd4 {[%clk 0:02:13]} 22. Bxd4 {[%clk 0:02:14]}  Bc5 {[%clk 0:02:12]} 23. Qe3 {[%clk 0:02:14]}  Bxd4 {[%clk 0:01:47]} 24. Qxd4 {[%clk 0:02:15]}  Qxd4+ {[%clk 0:01:38]} 25. Rxd4 {[%clk 0:02:16]}  Rxc2 {[%clk 0:01:38]} 26. Bxb5 {[%clk 0:02:16]}  h5 {[%clk 0:01:39]} 27. h3 {[%clk 0:02:12]}  Rc3 {[%clk 0:01:35]} 28. Rd3 {[%clk 0:02:09]}  Rfc8 {[%clk 0:01:31]} 29. Rff3 {[%clk 0:02:07]}  Rc1+ {[%clk 0:01:30]} 30. Kg2 {[%clk 0:02:07]}  Ra1 {[%clk 0:01:28]} 31. a4 {[%clk 0:01:51]}  Rcc1 {[%clk 0:01:23]} 32. Rd8+ {[%clk 0:01:47]}  Kh7 {[%clk 0:01:23]} 33. Rf8 {[%clk 0:01:45]}  Rg1+ {[%clk 0:00:48]} 34. Kf2 {[%clk 0:01:44]}  hxg4 {[%clk 0:00:49]} 35. hxg4 {[%clk 0:01:44]}  Rxg4 {[%clk 0:00:49]} 36. Rxf7 {[%clk 0:01:36]}  Kg8 {[%clk 0:00:49]} 37. Rc7 {[%clk 0:01:35]}  Nf5 {[%clk 0:00:49]} 38. Rfc3 {[%clk 0:01:10]}  Rxf4+ {[%clk 0:00:47]} 39. Kg2 {[%clk 0:01:05]}  Rg4+ {[%clk 0:00:42]} 40. Kf3 {[%clk 0:01:02]}  Rag1 {[%clk 0:00:32]} 41. Ke2 {[%clk 0:00:15]}  R1g2+ {[%clk 0:00:26]} 42. Kd1 {[%clk 0:00:13]}  Rh2 {[%clk 0:00:23]} 43. Rc8+ {[%clk 0:00:08]}  Kg7 {[%clk 0:00:23]} 44. R3c7+ {[%clk 0:00:08]}  Kh6 {[%clk 0:00:19]} 45. Rh8+ {[%clk 0:00:08]}  Kg5 {[%clk 0:00:19]} 46. Rxh2 {[%clk 0:00:09]}  Nd4 {[%clk 0:00:17]} 47. Bc4 {[%clk 0:00:09]}  Nf3 {[%clk 0:00:18]} 48. Rf2 {[%clk 0:00:09]}  Nxe5 {[%clk 0:00:18]} 49. Bxe6 {[%clk 0:00:09]}  Rd4+ {[%clk 0:00:17]} 50. Rd2 {[%clk 0:00:09]}  Re4 {[%clk 0:00:16]} 51. Rc5 {[%clk 0:00:09]}  Kf6 {[%clk 0:00:16]} 52. Bc4 {[%clk 0:00:08]}  Nf3 {[%clk 0:00:15]} 53. Rf2 {[%clk 0:00:08]}  Rf4 {[%clk 0:00:15]} 54. Ke2 {[%clk 0:00:08]}  Nd4+ {[%clk 0:00:15]} 55. Ke3 {[%clk 0:00:08]}  Rxf2 {[%clk 0:00:13]} 56. Kxf2 {[%clk 0:00:07]}  g5 {[%clk 0:00:14]} 57. Rxa5 {[%clk 0:00:07]}  g4 {[%clk 0:00:14]} 58. Rd5 {[%clk 0:00:06]}  Nf5 {[%clk 0:00:14]} 59. Rxf5+ {[%clk 0:00:07]}  Kxf5 {[%clk 0:00:14]} 60. Kg3 {[%clk 0:00:07]}  Kg5 {[%clk 0:00:14]} 61. b4 {[%clk 0:00:08]}  Kf6 {[%clk 0:00:15]} 62. b5 {[%clk 0:00:08]}  Ke5 {[%clk 0:00:16]} 63. a5 {[%clk 0:00:09]}  Kd4 {[%clk 0:00:16]} 64. Kxg4 {[%clk 0:00:09]}  Kc5 {[%clk 0:00:17]} 65. Kf5 {[%clk 0:00:09]}  Kb4 {[%clk 0:00:18]} 66. b6 {[%clk 0:00:09]}  Kxa5 {[%clk 0:00:19]} 67. b7 {[%clk 0:00:10]}  Kb4 {[%clk 0:00:19]} 68. b8=Q+ {[%clk 0:00:11]}  Ka5 {[%clk 0:00:19]} 69. Qb5# {[%clk 0:00:11]} 1-0


[Site "https://www.chess.com"]

[Event "Titled Tuesday Blitz March 14 Late 2023"]
[White "Ismagilov, Damir"]
[Black "Holt, Conrad"]
[WhiteFideId "34199982"]
[BlackFideId "2034387"]
[WhiteElo "2078"]
[BlackElo "2592"]
[Result "1-0"]
[Round "06"]
[TimeControl "180+2"]
[Date "2023.03.14"]
[WhiteClock "0:00:11"]
[BlackClock "0:00:05"]

1. d4 {[%clk 0:03:00]}  d5 {[%clk 0:02:59]} 2. Nf3 {[%clk 0:03:00]}  Nf6 {[%clk 0:02:59]} 3. Bg5 {[%clk 0:02:59]}  Ne4 {[%clk 0:02:59]} 4. Bf4 {[%clk 0:02:59]}  c5 {[%clk 0:02:55]} 5. e3 {[%clk 0:02:58]}  Nc6 {[%clk 0:02:48]} 6. Nbd2 {[%clk 0:02:51]}  Nxd2 {[%clk 0:02:45]} 7. Qxd2 {[%clk 0:02:50]}  Qb6 {[%clk 0:02:25]} 8. c3 {[%clk 0:02:49]}  e6 {[%clk 0:02:16]} 9. Bd3 {[%clk 0:02:41]}  c4 {[%clk 0:02:13]} 10. Be2 {[%clk 0:02:39]}  Be7 {[%clk 0:02:13]} 11. h4 {[%clk 0:02:34]}  Qd8 {[%clk 0:02:10]} 12. h5 {[%clk 0:02:33]}  b5 {[%clk 0:02:09]} 13. h6 {[%clk 0:02:31]}  g5 {[%clk 0:02:08]} 14. Bg3 {[%clk 0:02:22]}  f6 {[%clk 0:01:59]} 15. Qc2 {[%clk 0:02:03]}  O-O {[%clk 0:01:47]} 16. e4 {[%clk 0:01:51]}  f5 {[%clk 0:01:47]} 17. exf5 {[%clk 0:01:39]}  exf5 {[%clk 0:01:47]} 18. Ne5 {[%clk 0:01:33]}  f4 {[%clk 0:01:41]} 19. Nxc6 {[%clk 0:01:32]}  Qd6 {[%clk 0:01:41]} 20. Nxe7+ {[%clk 0:01:29]}  Qxe7 {[%clk 0:01:41]} 21. Bh2 {[%clk 0:01:15]}  Bf5 {[%clk 0:01:37]} 22. Qd2 {[%clk 0:01:07]}  Rae8 {[%clk 0:01:32]} 23. Kd1 {[%clk 0:00:55]}  b4 {[%clk 0:00:58]} 24. Bf3 {[%clk 0:00:50]}  Qd7 {[%clk 0:00:57]} 25. Re1 {[%clk 0:00:39]}  g4 {[%clk 0:00:49]} 26. Rxe8 {[%clk 0:00:36]}  Rxe8 {[%clk 0:00:48]} 27. Be2 {[%clk 0:00:29]}  Qa4+ {[%clk 0:00:42]} 28. Kc1 {[%clk 0:00:24]}  bxc3 {[%clk 0:00:37]} 29. bxc3 {[%clk 0:00:20]}  Qa3+ {[%clk 0:00:36]} 30. Kd1 {[%clk 0:00:20]}  Qa4+ {[%clk 0:00:24]} 31. Kc1 {[%clk 0:00:20]}  Bd3 {[%clk 0:00:14]} 32. Bxd3 {[%clk 0:00:18]}  cxd3 {[%clk 0:00:15]} 33. Qxd3 {[%clk 0:00:14]}  Re1+ {[%clk 0:00:06]} 34. Kb2 {[%clk 0:00:14]}  Re6 {[%clk 0:00:07]} 35. Rb1 {[%clk 0:00:11]}  Rb6+ {[%clk 0:00:06]} 36. Ka1 {[%clk 0:00:11]}  Rxb1+ {[%clk 0:00:05]} 37. Kxb1 {[%clk 0:00:11]}  f3 {[%clk 0:00:01]} 38. gxf3 {[%clk 0:00:10]}  gxf3 {[%clk 0:00:02]} 39. Be5 {[%clk 0:00:10]}  Qc6 {[%clk 0:00:02]} 40. Qxf3 {[%clk 0:00:10]}  Qb6+ {[%clk 0:00:02]} 41. Kc1 {[%clk 0:00:10]}  Qxh6+ {[%clk 0:00:02]} 42. Qe3 {[%clk 0:00:10]}  Qh1+ {[%clk 0:00:02]} 43. Kb2 {[%clk 0:00:10]}  Qd1 {[%clk 0:00:03]} 44. Qg5+ {[%clk 0:00:09]}  Kf7 {[%clk 0:00:03]} 45. Qg7+ {[%clk 0:00:10]}  Ke8 {[%clk 0:00:04]} 46. Qh8+ {[%clk 0:00:10]}  Kd7 {[%clk 0:00:04]} 47. Qxh7+ {[%clk 0:00:11]}  Kc6 {[%clk 0:00:04]} 48. Qc2 {[%clk 0:00:11]}  Qf1 {[%clk 0:00:03]} 49. Qa4+ {[%clk 0:00:11]}  Kb6 {[%clk 0:00:04]} 50. Qb4+ {[%clk 0:00:12]}  Ka6 {[%clk 0:00:03]} 51. Qa4+ {[%clk 0:00:11]}  Kb6 {[%clk 0:00:04]} 52. Qb4+ {[%clk 0:00:11]}  Ka6 {[%clk 0:00:05]} 53. Qd6+ {[%clk 0:00:11]}  Ka5 {[%clk 0:00:04]} 54. Qxd5+ {[%clk 0:00:12]}  Ka6 {[%clk 0:00:04]} 55. Qc6+ {[%clk 0:00:11]}  Ka5 {[%clk 0:00:05]} 56. Bc7# {[%clk 0:00:11]} 1-0


[Site "https://www.chess.com"]

[Event "Titled Tuesday Blitz March 14 Late 2023"]
[White "Larino Nieto, David"]
[Black "Riff, Vincent"]
[WhiteFideId "2256444"]
[BlackFideId "617776"]
[WhiteElo "2506"]
[BlackElo "2369"]
[Result "1-0"]
[Round "06"]
[TimeControl "180+2"]
[Date "2023.03.14"]
[WhiteClock "0:00:32"]
[BlackClock "0:00:33"]

1. e4 {[%clk 0:03:00]}  c5 {[%clk 0:02:57]} 2. Nc3 {[%clk 0:03:01]}  Nc6 {[%clk 0:02:56]} 3. g3 {[%clk 0:03:02]}  g6 {[%clk 0:02:55]} 4. Bg2 {[%clk 0:03:03]}  Bg7 {[%clk 0:02:56]} 5. d3 {[%clk 0:03:04]}  d6 {[%clk 0:02:56]} 6. f4 {[%clk 0:03:05]}  e6 {[%clk 0:02:55]} 7. Nf3 {[%clk 0:03:05]}  Nge7 {[%clk 0:02:55]} 8. O-O {[%clk 0:03:06]}  O-O {[%clk 0:02:55]} 9. Be3 {[%clk 0:03:07]}  b6 {[%clk 0:02:53]} 10. Bf2 {[%clk 0:03:06]}  d5 {[%clk 0:02:47]} 11. e5 {[%clk 0:03:04]}  Ba6 {[%clk 0:02:41]} 12. Re1 {[%clk 0:03:03]}  Rc8 {[%clk 0:02:39]} 13. g4 {[%clk 0:03:02]}  d4 {[%clk 0:02:15]} 14. Ne4 {[%clk 0:02:59]}  Nd5 {[%clk 0:02:16]} 15. Qd2 {[%clk 0:02:56]}  f6 {[%clk 0:02:10]} 16. Bh4 {[%clk 0:02:43]}  Bh6 {[%clk 0:01:44]} 17. Nxf6+ {[%clk 0:02:24]}  Rxf6 {[%clk 0:01:35]} 18. Bxf6 {[%clk 0:02:24]}  Bxf4 {[%clk 0:01:35]} 19. Qxf4 {[%clk 0:01:36]}  Nxf4 {[%clk 0:01:33]} 20. Bxd8 {[%clk 0:01:37]}  Rxd8 {[%clk 0:01:33]} 21. Ng5 {[%clk 0:01:35]}  Nb4 {[%clk 0:01:28]} 22. Rac1 {[%clk 0:01:19]}  h6 {[%clk 0:01:28]} 23. Ne4 {[%clk 0:01:14]}  Kg7 {[%clk 0:01:14]} 24. Nf6 {[%clk 0:01:08]}  Nxa2 {[%clk 0:00:54]} 25. Ra1 {[%clk 0:01:06]}  Nb4 {[%clk 0:00:53]} 26. Rf1 {[%clk 0:01:04]}  g5 {[%clk 0:00:35]} 27. c3 {[%clk 0:00:53]}  dxc3 {[%clk 0:00:35]} 28. bxc3 {[%clk 0:00:52]}  Ne2+ {[%clk 0:00:35]} 29. Kh1 {[%clk 0:00:47]}  Nxc3 {[%clk 0:00:35]} 30. Nh5+ {[%clk 0:00:45]}  Kg8 {[%clk 0:00:35]} 31. Rf6 {[%clk 0:00:41]}  Ncd5 {[%clk 0:00:34]} 32. Rg6+ {[%clk 0:00:37]}  Kf7 {[%clk 0:00:34]} 33. Rf1+ {[%clk 0:00:33]}  Kxg6 {[%clk 0:00:33]} 34. Be4# {[%clk 0:00:32]} 1-0


[Site "https://www.chess.com"]

[Event "Titled Tuesday Blitz March 14 Late 2023"]
[White "Nazaretyan, Tigran"]
[Black "Rostomyan, Mikayel"]
[WhiteFideId "24162345"]
[BlackFideId "13313754"]
[WhiteElo "2111"]
[BlackElo "2009"]
[Result "1-0"]
[Round "06"]
[TimeControl "180+2"]
[Date "2023.03.14"]
[WhiteClock "0:01:18"]
[BlackClock "0:00:03"]

1. d4 {[%clk 0:03:00]}  Nf6 {[%clk 0:02:59]} 2. c4 {[%clk 0:02:59]}  c5 {[%clk 0:02:59]} 3. d5 {[%clk 0:02:58]}  b5 {[%clk 0:02:58]} 4. cxb5 {[%clk 0:02:57]}  a6 {[%clk 0:02:59]} 5. bxa6 {[%clk 0:02:57]}  e6 {[%clk 0:02:59]} 6. Nc3 {[%clk 0:02:55]}  exd5 {[%clk 0:02:58]} 7. Nxd5 {[%clk 0:02:53]}  Nxa6 {[%clk 0:02:58]} 8. Nf3 {[%clk 0:02:39]}  Bb7 {[%clk 0:02:56]} 9. e4 {[%clk 0:02:34]}  Nxe4 {[%clk 0:02:46]} 10. Bc4 {[%clk 0:02:32]}  Bd6 {[%clk 0:02:24]} 11. O-O {[%clk 0:02:12]}  O-O {[%clk 0:02:22]} 12. Re1 {[%clk 0:02:10]}  Re8 {[%clk 0:01:51]} 13. a3 {[%clk 0:01:57]}  Bb8 {[%clk 0:00:55]} 14. Qd3 {[%clk 0:01:54]}  Nd6 {[%clk 0:00:53]} 15. Bg5 {[%clk 0:01:53]}  Qc8 {[%clk 0:00:33]} 16. Nb6 {[%clk 0:01:33]}  Qc6 {[%clk 0:00:16]} 17. Nxa8 {[%clk 0:01:32]}  Bxa8 {[%clk 0:00:09]} 18. Bxa6 {[%clk 0:01:29]}  c4 {[%clk 0:00:10]} 19. Bxc4 {[%clk 0:01:26]}  Rxe1+ {[%clk 0:00:05]} 20. Rxe1 {[%clk 0:01:25]}  h6 {[%clk 0:00:06]} 21. Bf4 {[%clk 0:01:22]}  Nxc4 {[%clk 0:00:03]} 22. Re8# {[%clk 0:01:18]} 1-0


[Site "https://www.chess.com"]

[Event "Titled Tuesday Blitz March 14 Late 2023"]
[White "Cardoso Cardoso, Jose Gabriel"]
[Black "Roebers, Eline"]
[WhiteFideId "4430492"]
[BlackFideId "1058401"]
[WhiteElo "2496"]
[BlackElo "2543"]
[Result "1-0"]
[Round "06"]
[TimeControl "180+2"]
[Date "2023.03.14"]
[WhiteClock "0:02:20"]
[BlackClock "0:02:17"]

1. d4 {[%clk 0:03:00]}  f5 {[%clk 0:02:57]} 2. Bf4 {[%clk 0:02:57]}  Nf6 {[%clk 0:02:57]} 3. e3 {[%clk 0:02:57]}  d6 {[%clk 0:02:56]} 4. h3 {[%clk 0:02:57]}  e6 {[%clk 0:02:56]} 5. Nf3 {[%clk 0:02:57]}  Be7 {[%clk 0:02:57]} 6. Bc4 {[%clk 0:02:57]}  h6 {[%clk 0:02:53]} 7. Nbd2 {[%clk 0:02:57]}  O-O {[%clk 0:02:52]} 8. Qe2 {[%clk 0:02:57]}  Qe8 {[%clk 0:02:52]} 9. g4 {[%clk 0:02:52]}  fxg4 {[%clk 0:02:51]} 10. hxg4 {[%clk 0:02:53]}  Nxg4 {[%clk 0:02:51]} 11. O-O-O {[%clk 0:02:54]}  Nf6 {[%clk 0:02:37]} 12. Rdg1 {[%clk 0:02:52]}  Kh8 {[%clk 0:02:20]} 13. Bxh6 {[%clk 0:02:26]}  gxh6 {[%clk 0:02:19]} 14. Rxh6+ {[%clk 0:02:27]}  Nh7 {[%clk 0:02:19]} 15. Bd3 {[%clk 0:02:27]}  Rf7 {[%clk 0:02:17]} 16. Rgh1 {[%clk 0:02:20]} 1-0


[Site "https://www.chess.com"]

[Event "Titled Tuesday Blitz March 14 Late 2023"]
[White "Taboas Rodriguez, Daniel"]
[Black "Korchmar, Vasiliy"]
[WhiteFideId "2208466"]
[BlackFideId "24131750"]
[WhiteElo "2365"]
[BlackElo "2370"]
[Result "0-1"]
[Round "06"]
[TimeControl "180+2"]
[Date "2023.03.14"]
[WhiteClock "0:00:20"]
[BlackClock "0:01:07"]

1. d4 {[%clk 0:03:00]}  d5 {[%clk 0:02:59]} 2. Nf3 {[%clk 0:03:00]}  Nf6 {[%clk 0:02:59]} 3. c4 {[%clk 0:03:01]}  c6 {[%clk 0:03:00]} 4. cxd5 {[%clk 0:03:01]}  cxd5 {[%clk 0:03:00]} 5. Nc3 {[%clk 0:03:02]}  Nc6 {[%clk 0:03:01]} 6. Bf4 {[%clk 0:03:03]}  Nh5 {[%clk 0:03:01]} 7. Bd2 {[%clk 0:03:02]}  g6 {[%clk 0:03:00]} 8. e3 {[%clk 0:03:03]}  Bg7 {[%clk 0:03:00]} 9. Bd3 {[%clk 0:03:03]}  O-O {[%clk 0:03:00]} 10. O-O {[%clk 0:03:03]}  Bg4 {[%clk 0:02:53]} 11. h3 {[%clk 0:03:02]}  Bxf3 {[%clk 0:02:53]} 12. Qxf3 {[%clk 0:03:03]}  e5 {[%clk 0:02:53]} 13. Qxd5 {[%clk 0:03:01]}  exd4 {[%clk 0:02:44]} 14. exd4 {[%clk 0:03:00]}  Nxd4 {[%clk 0:02:36]} 15. Bg5 {[%clk 0:02:48]}  Qb6 {[%clk 0:02:26]} 16. Be7 {[%clk 0:02:40]}  Rfe8 {[%clk 0:01:44]} 17. Bc5 {[%clk 0:02:39]}  Qxb2 {[%clk 0:01:42]} 18. Na4 {[%clk 0:00:51]}  Ne2+ {[%clk 0:01:31]} 19. Bxe2 {[%clk 0:00:39]}  Qxe2 {[%clk 0:01:29]} 20. Rad1 {[%clk 0:00:36]}  Nf4 {[%clk 0:01:27]} 21. Qxb7 {[%clk 0:00:34]}  Qc4 {[%clk 0:01:12]} 22. Qb3 {[%clk 0:00:31]}  Qe4 {[%clk 0:01:08]} 23. Qf3 {[%clk 0:00:20]}  Qxa4 {[%clk 0:01:07]} 0-1


[Site "https://www.chess.com"]